bitfinex-derivatives/quotes_SOLF0:USTF0_20250413
["timestamp","ask_amount","ask_price","bid_price","bid_amount"]
[1744568407620,0.05340837,131.43,131.4,0.04923705]
[1744568407919,0.05340837,131.43,131.42,7.6113]
[1744568417329,38.64,131.49,131.41,1.9705]
[1744568417527,7.6081,131.48,131.42,2.0833]
[1744568417830,7.6081,131.48,131.45,7.6092]
[1744568418231,46.2474,131.49,131.42,2.0833]
[1744568418421,46.2474,131.49,131.45,0.05146806]
[1744568418631,0.05630118,131.48,131.46,7.6086]
[1744568418826,0.05630118,131.48,131.45,0.05146806]
[1744568418827,7.66420118,131.48,131.45,0.05146806]
[1744568419127,7.66420118,131.48,131.45,7.66076806]
[1744568420026,0.05630118,131.48,131.46,7.609]
[1744568420231,0.05630118,131.48,131.45,0.05146806]
[1744568420525,0.05630118,131.48,131.47,7.6084]
[1744568420930,0.05630118,131.48,131.45,0.05146806]
[1744568421533,0.05630118,131.48,131.46,7.6086]
[1744568423033,0.05630118,131.48,131.47,7.6084]
[1744568423729,0.05630118,131.48,131.46,7.6087]
[1744568425934,7.66410118,131.48,131.45,7.66076806]
[1744568426140,0.05630118,131.48,131.45,0.05146806]
[1744568426327,13.61350624,131.46,131.38,2.0801]
[1744568426526,7.6112,131.43,131.4,7.6121]
[1744568426833,13.61350624,131.44,131.4,7.6121]
[1744568426834,52.23350624,131.44,131.4,7.6121]
[1744568427038,54.18240624,131.44,131.4,7.6121]
[1744568427635,0.05273213,131.43,131.41,7.66992394]
[1744568428636,0.05273213,131.43,131.42,7.6113]
[1744568430439,0.05273213,131.43,131.42,10.80234701]
[1744568430737,0.05273213,131.43,131.42,7.6113]
[1744568431839,0.05273213,131.43,131.41,7.66972394]
[1744568432642,0.05273213,131.43,131.42,7.6113]
[1744568441050,0.05273213,131.43,131.42,10.80751385]
[1744568441753,0.05273213,131.43,131.42,7.6113]
[1744568442955,0.05273213,131.43,131.41,0.05812394]
[1744568443155,52.22623837,131.43,131.41,0.05812394]
[1744568444153,7.6113,131.42,131.41,0.05812394]
[1744568444454,38.61273213,131.43,131.41,0.05812394]
[1744568444656,46.22363213,131.43,131.41,0.05812394]
[1744568445856,7.6113,131.42,131.41,0.05812394]
[1744568446758,46.22363213,131.43,131.41,0.05812394]
[1744568447359,38.61273213,131.43,131.41,7.66992394]
[1744568447551,0.05273213,131.43,131.41,0.05812394]
[1744568447954,1.9675,131.49,131.46,7.6086]
[1744568447955,46.1875,131.49,131.46,7.6086]
[1744568448651,1.9489,131.5,131.43,1.9623]
[1744568448652,641.22,131.52,131.44,13.61350624]
[1744568448850,641.22,131.52,131.46,13.61350624]
[1744568449157,38.58,131.55,131.48,13.61350624]
[1744568449356,52.19350624,131.55,131.46,52.19350624]
[1744568449559,54.21740624,131.55,131.47,7.6081]
[1744568450262,0.04946995,131.52,131.5,0.04806856]
[1744568450563,38.58,131.51,131.5,0.04806856]
[1744568450751,7.6079,131.48,131.43,1.9623]
[1744568450957,52.19350624,131.51,131.44,7.6097]
[1744568451559,7.609,131.46,131.43,9.5727]
[1744568451962,7.65736963,131.46,131.43,9.62399147]
[1744568452258,0.04836963,131.46,131.43,0.05129147]
[1744568452861,7.61,131.45,131.43,0.05129147]
[1744568454466,7.6101,131.44,131.43,0.05129147]
[1744568457471,21.21350624,131.44,131.35,14.28686]
[1744568457670,13.61350624,131.4,131.35,14.28686]
[1744568457967,7.6147,131.36,131.35,14.28686]
[1744568458167,46.1747,131.36,131.35,14.28686]
[1744568459173,38.56,131.36,131.29,2.1158]
[1744568459373,13.61350624,131.35,131.28,37.20775228]
[1744568459671,13.61350624,131.35,131.28,35.11485228]
[1744568459970,7.6186,131.3,131.28,35.11485228]
[1744568460469,7.67272415,131.3,131.28,35.16933028]
[1744568460869,7.6188,131.29,131.28,35.16933028]
[1744568461070,7.6188,131.29,131.28,0.054478]
[1744568461573,0.05412415,131.3,131.21,2.0879]
[1744568461871,38.58,131.29,131.22,3.19108015]
[1744568462073,7.6202,131.27,131.21,2.0879]
[1744568462272,7.6202,131.27,131.23,7.622]
[1744568462473,38.58,131.28,131.23,7.622]
[1744568462671,0.05501178,131.26,131.24,0.05299973]
[1744568463672,0.05501178,131.26,131.24,7.67469973]
[1744568465776,0.05501178,131.26,131.24,0.05299973]
[1744568466277,7.67591178,131.26,131.24,0.05299973]
[1744568466472,0.05501178,131.26,131.24,0.05299973]
[1744568466875,7.6211,131.25,131.24,0.05299973]
[1744568467075,0.05501178,131.26,131.17,2.138]
[1744568467272,7.6219,131.24,131.2,7.6236]
[1744568467577,28.03131147,131.27,131.17,2.138]
[1744568468081,7.6222,131.24,131.17,2.138]
[1744568468281,0.0538295,131.23,131.21,0.05775764]
[1744568468674,7.6229,131.22,131.21,0.05775764]
[1744568469481,0.0538295,131.23,131.15,2.14309]
[1744568469681,60.43201147,131.24,131.15,2.14309]
[1744568470183,38.6,131.24,131.16,7.6263]
[1744568470683,0.05317988,131.21,131.19,0.04920451]
[1744568477790,0.05317988,131.21,131.2,7.624]
[1744568478886,21.83201147,131.3,131.19,0.04920451]
[1744568479088,38.54,131.29,131.19,21.83201147]
[1744568479290,38.54,131.29,131.2,42.5897]
[1744568479482,38.54,131.29,131.26,7.6204]
[1744568479883,38.54,131.29,131.25,7.6209]
[1744568480089,38.59208359,131.29,131.26,0.04869569]
[1744568480290,38.54,131.29,131.2,42.5897]
[1744568480491,38.59292065,131.29,131.26,0.04801106]
[1744568480690,38.54,131.29,131.25,7.6211]
[1744568480992,38.59642799,131.29,131.26,0.04989471]
[1744568482791,38.59642799,131.29,131.26,7.67039471]
[1744568483591,38.59642799,131.29,131.26,0.04989471]
[1744568484294,52.24480832,131.29,131.26,0.04989471]
[1744568484794,38.59642799,131.29,131.26,7.67029471]
[1744568485397,38.59642799,131.29,131.26,0.04989471]
[1744568486796,52.24480832,131.29,131.26,0.04989471]
[1744568487100,13.64838033,131.27,131.17,38.54]
[1744568487300,13.64838033,131.27,131.17,58.37598033]
[1744568487800,13.64838033,131.27,131.23,7.6219]
[1744568488000,52.18838033,131.29,131.17,58.37598033]
[1744568488202,52.18838033,131.29,131.24,7.6215]
[1744568488498,0.05789784,131.28,131.24,7.6215]
[1744568488693,0.05789784,131.28,131.25,0.05582251]
[1744568489404,0.05789784,131.28,131.25,7.67682251]
[1744568489603,0.05789784,131.28,131.25,0.05582251]
[1744568489906,13.70627817,131.28,131.25,0.05582251]
[1744568490103,13.64838033,131.26,131.17,44.7276]
[1744568490406,13.64838033,131.2,131.15,7.6266]
[1744568490595,13.64838033,131.18,131.08,19.70138033]
[1744568490800,13.64838033,131.18,131.09,3.175778]
[1744568491001,13.64838033,131.18,131.08,19.70138033]
[1744568491198,38.54,131.19,131.08,19.70138033]
[1744568491199,38.54,131.19,131.15,7.6264]
[1744568491399,0.05344454,131.18,131.08,27.92707311]
[1744568491595,38.54,131.19,131.16,0.0577775]
[1744568491796,38.54,131.19,131.11,8.77871307]
[1744568492105,0.05451912,131.18,131.17,7.6258]
[1744568493107,38.54,131.22,131.16,0.05818292]
[1744568493505,38.54,131.22,131.2,7.6237]
[1744568493906,38.54,131.22,131.17,1.9604]
[1744568494310,0.05277374,131.21,131.18,0.05647476]
[1744568495408,0.05277374,131.21,131.2,7.624]
[1744568497011,38.56,131.26,131.24,7.6217]
[1744568497212,38.56,131.26,131.17,1.9604]
[1744568497413,38.56,131.28,131.18,3.18706593]
[1744568497711,38.56,131.28,131.24,7.6214]
[1744568498212,0.05824723,131.27,131.25,0.05111601]
[1744568501012,0.05824723,131.27,131.25,7.67191601]
[1744568501212,0.05824723,131.27,131.25,0.05111601]
[1744568501416,0.05824723,131.27,131.25,7.67201601]
[1744568502516,0.05824723,131.27,131.25,0.05111601]
[1744568503016,0.05824723,131.27,131.25,7.67211601]
[1744568503417,0.05824723,131.27,131.25,0.05111601]
[1744568503617,0.05824723,131.27,131.26,7.6206]
[1744568503916,0.05824723,131.27,131.25,0.05111601]
[1744568504516,0.05824723,131.27,131.25,7.67181601]
[1744568507623,0.05824723,131.27,131.25,0.05111601]
[1744568511722,0.05824723,131.27,131.25,7.67221601]
[1744568515525,0.05824723,131.27,131.26,7.6206]
[1744568518526,0.05824723,131.27,131.25,0.05111601]
[1744568519027,38.51824723,131.27,131.17,40.4204]
[1744568519226,38.46,131.27,131.19,3.20716842]
[1744568519421,38.46,131.27,131.2,3.20716842]
[1744568519621,38.46,131.27,131.21,3.20716842]
[1744568519827,38.46,131.27,131.22,3.20716842]
[1744568520128,0.05398133,131.26,131.25,7.6207]
[1744568520324,655.77058701,131.3,131.25,7.6207]
[1744568520626,0.05853998,131.27,131.25,7.6207]
[1744568521327,0.05853998,131.27,131.24,7.67603331]
[1744568521625,0.05853998,131.27,131.24,0.05453331]
[1744568521826,0.05853998,131.27,131.25,7.621]
[1744568524830,0.05853998,131.27,131.24,7.67593331]
[1744568525027,0.05853998,131.27,131.24,0.05453331]
[1744568525431,0.05853998,131.27,131.25,7.6208]
[1744568527426,0.05853998,131.27,131.26,7.6206]
[1744568527631,38.46,131.32,131.26,3.21526445]
[1744568527831,38.46,131.32,131.23,1.966]
[1744568528033,38.46,131.32,131.24,3.21510035]
[1744568528232,38.46,131.32,131.25,3.21510035]
[1744568528430,38.46,131.32,131.26,3.21510035]
[1744568528731,0.05519683,131.3,131.28,0.05369386]
[1744568529133,0.05519683,131.3,131.29,7.6188]
[1744568530232,0.05519683,131.3,131.28,0.05369386]
[1744568539437,38.36,131.35,131.29,3.21941696]
[1744568539638,38.36,131.38,131.3,3.21941696]
[1744568539837,38.36,131.38,131.3,13.65058701]
[1744568540139,38.36,131.38,131.33,7.6159]
[1744568540738,0.05336833,131.37,131.34,7.66567494]
[1744568543336,0.05336833,131.37,131.34,0.04987494]
[1744568543642,13.65058701,131.36,131.34,0.04987494]
[1744568543941,13.65058701,131.36,131.29,7.6185]
[1744568544135,13.65058701,131.36,131.25,2.1342]
[1744568544136,13.65058701,131.32,131.25,4.1952]
[1744568544334,13.65058701,131.32,131.26,7.6203]
[1744568544335,51.99058701,131.32,131.26,7.6203]
[1744568544931,0.05767447,131.3,131.28,0.05142217]
[1744568547038,0.05767447,131.3,131.28,7.67052217]
[1744568547640,0.05767447,131.3,131.29,7.6188]
[1744568548548,0.05767447,131.3,131.28,7.67052217]
[1744568548750,0.05767447,131.3,131.28,0.05142217]
[1744568552552,0.05767447,131.3,131.29,7.6188]
[1744568552953,0.05767447,131.3,131.28,0.05142217]
[1744568555353,0.05767447,131.3,131.28,7.67022217]
[1744568555554,0.05767447,131.3,131.28,0.05142217]
[1744568556051,38.36,131.35,131.29,3.20251392]
[1744568556353,38.36,131.35,131.27,40.3112]
[1744568556554,38.36,131.35,131.28,3.20312601]
[1744568556754,38.36,131.35,131.27,1.9512]
[1744568556955,38.36,131.35,131.28,3.20281687]
[1744568557156,0.05612003,131.32,131.3,7.66896054]
[1744568557758,0.05612003,131.32,131.31,7.6176]
[1744568560259,0.05612003,131.32,131.3,7.66916054]
[1744568560458,0.05612003,131.32,131.3,0.05116054]
[1744568561056,0.05612003,131.32,131.31,7.6176]
[1744568562359,38.26,131.39,131.3,13.70174755]
[1744568562654,38.26,131.39,131.32,13.65058701]
[1744568562859,38.26,131.39,131.33,5.24176798]
[1744568563055,38.26,131.39,131.36,7.6146]
[1744568563256,38.26,131.39,131.33,2.0437]
[1744568563758,0.053862,131.37,131.35,7.66978207]
[1744568563956,0.053862,131.37,131.35,0.05478207]
[1744568567261,0.053862,131.37,131.35,7.67008207]
[1744568567462,0.053862,131.37,131.35,0.05478207]
[1744568568164,13.65058701,131.36,131.35,0.05478207]
[1744568571565,0.053862,131.37,131.35,0.05478207]
[1744568572066,0.053862,131.37,131.35,7.67008207]
[1744568573266,0.053862,131.37,131.36,7.6147]
[1744568577368,0.053862,131.37,131.35,7.66968207]
[1744568577666,0.053862,131.37,131.35,0.05478207]
[1744568577870,0.053862,131.37,131.36,7.6147]
[1744568580372,0.053862,131.37,131.35,7.66988207]
[1744568580673,0.053862,131.37,131.35,0.05478207]
[1744568581471,0.053862,131.37,131.36,7.6147]
[1744568581667,0.053862,131.37,131.35,0.05478207]
[1744568581972,0.053862,131.37,131.36,7.6147]
[1744568582178,0.053862,131.37,131.35,0.05478207]
[1744568582680,38.26,131.39,131.35,0.05478207]
[1744568582875,38.24,131.42,131.35,0.05478207]
[1744568583076,38.24,131.45,131.43,7.6104]
[1744568583275,654.97058701,131.48,131.36,51.89058701]
[1744568583476,13.65058701,131.46,131.37,3.19372351]
[1744568583679,7.6103,131.44,131.41,7.6115]
[1744568583880,0.05304225,131.43,131.4,0.04825712]
[1744568584179,0.05304225,131.43,131.41,7.6115]
[1744568585277,0.05304225,131.43,131.42,7.6113]
[1744568587682,0.05304225,131.43,131.41,7.6116]
[1744568587881,0.05304225,131.43,131.4,0.04825712]
[1744568589184,0.05304225,131.43,131.42,7.6113]
[1744568592785,0.05304225,131.43,131.4,0.04825712]
[1744568593486,0.05304225,131.43,131.41,7.6115]
[1744568595188,0.05304225,131.43,131.4,7.66045712]
[1744568595385,7.66404225,131.43,131.4,0.04825712]
[1744568595683,13.70362926,131.43,131.4,0.04825712]
[1744568596088,0.05304225,131.43,131.4,0.04825712]
[1744568596590,0.05304225,131.43,131.42,7.6113]
[1744568596788,38.12,131.47,131.4,13.69884413]
[1744568596985,42.15,131.5,131.4,13.69884413]
[1744568597186,55.80058701,131.5,131.4,13.65058701]
[1744568597490,7.608,131.48,131.45,7.6092]
[1744568597990,7.66044708,131.48,131.45,7.66738843]
[1744568598290,13.70303409,131.48,131.45,0.05818843]
[1744568598692,7.609,131.46,131.45,0.05818843]
[1744568598895,45.729,131.46,131.45,0.05818843]
[1744568601192,38.12,131.46,131.45,0.05818843]
[1744568602892,45.729,131.46,131.45,0.05818843]
[1744568603394,51.77058701,131.46,131.38,366.1268]
[1744568603595,13.65058701,131.44,131.38,2.1268]
[1744568603789,13.65058701,131.44,131.38,7.6133]
[1744568603989,7.612,131.41,131.35,2.0729]
[1744568604188,38.12,131.42,131.38,7.6132]
[1744568604687,0.05489209,131.41,131.39,0.05746536]
[1744568604887,0.05489209,131.41,131.39,7.67036536]
[1744568608193,0.05489209,131.41,131.39,0.05746536]
[1744568608497,7.66689209,131.41,131.39,0.05746536]
[1744568609397,7.66689209,131.41,131.39,7.67046536]
[1744568609699,0.05489209,131.41,131.39,7.67046536]
[1744568610603,7.66689209,131.41,131.39,0.05746536]
[1744568611703,7.66689209,131.41,131.39,7.67046536]
[1744568612603,7.66689209,131.41,131.39,0.05746536]
[1744568614905,0.05489209,131.41,131.39,7.67016536]
[1744568615401,7.66679209,131.41,131.39,0.05746536]
[1744568616305,7.6124,131.4,131.39,0.05746536]
[1744568616507,21.26298701,131.4,131.39,0.05746536]
[1744568618807,7.6143,131.37,131.34,7.6157]
[1744568619107,13.65058701,131.4,131.31,40.2039]
[1744568619308,13.65058701,131.4,131.32,3.20829764]
[1744568619510,7.6139,131.38,131.35,7.6153]
[1744568619809,38.12,131.39,131.31,40.2039]
[1744568620005,0.0525242,131.38,131.37,7.6139]
[1744568620208,0.0525242,131.38,131.35,0.05325246]
[1744568620612,7.6665242,131.38,131.35,7.66835246]
[1744568621006,0.0525242,131.38,131.35,0.05325246]
[1744568621207,7.6144,131.37,131.35,0.05325246]
[1744568621707,7.6147,131.36,131.35,0.05325246]
[1744568622008,7.6147,131.36,131.28,8.77871307]
[1744568622009,13.65058701,131.36,131.28,8.77871307]
[1744568622314,7.6175,131.32,131.29,7.6184]
[1744568622512,51.69058701,131.33,131.29,7.6184]
[1744568622712,51.69058701,131.33,131.28,8.77871307]
[1744568622914,38.04,131.33,131.28,8.77871307]
[1744568623115,0.05841897,131.32,131.29,3.26262252]
[1744568623414,0.05841897,131.32,131.31,7.6176]
[1744568630107,643.0438,131.39,131.29,0.05447515]
[1744568630412,643.0438,131.39,131.3,13.65058701]
[1744568630710,7.614,131.38,131.31,6.0876]
[1744568630912,643.0438,131.39,131.31,6.0876]
[1744568631111,13.65058701,131.38,131.31,6.0876]
[1744568631311,7.66915196,131.36,131.34,0.05666788]
[1744568631707,0.05405196,131.36,131.34,7.67236788]
[1744568632215,0.05405196,131.36,131.34,0.05666788]
[1744568632415,0.05405196,131.36,131.35,7.6153]
[1744568633017,0.05405196,131.36,131.34,7.67236788]
[1744568633314,0.05405196,131.36,131.34,0.05666788]
[1744568633615,7.66905196,131.36,131.34,0.05666788]
[1744568635115,0.05405196,131.36,131.34,7.67256788]
[1744568635317,0.05405196,131.36,131.34,0.05666788]
[1744568635616,0.05405196,131.36,131.35,7.6153]
[1744568641216,0.05405196,131.36,131.34,0.05666788]
[1744568641419,13.70463897,131.36,131.34,0.05666788]
[1744568641618,38.04,131.35,131.34,0.05666788]
[1744568641812,45.6553,131.35,131.34,0.05666788]
[1744568645223,38.04,131.35,131.34,0.05666788]
[1744568645722,38.04,131.35,131.24,6.1711]
[1744568645723,7.618,131.31,131.24,6.1711]
[1744568645917,13.65058701,131.3,131.24,6.1711]
[1744568646422,38.04,131.31,131.24,6.1711]
[1744568646721,13.65058701,131.3,131.24,6.1711]
[1744568646923,0.05160415,131.29,131.26,0.04961221]
[1744568647623,0.05160415,131.29,131.27,7.6196]
[1744568647822,0.05160415,131.29,131.26,0.04961221]
[1744568650219,0.05160415,131.29,131.27,7.6194]
[1744568650524,0.05160415,131.29,131.26,0.04961221]
[1744568651325,0.05160415,131.29,131.27,7.6196]
[1744568651919,38.06,131.36,131.27,13.65058701]
[1744568652121,963.28,131.42,131.29,13.65058701]
[1744568652122,37.96,131.39,131.29,13.65058701]
[1744568652426,37.96,131.39,131.31,13.65058701]
[1744568653020,0.05248429,131.36,131.34,0.05052932]
[1744568653616,0.05248429,131.36,131.35,7.6153]
[1744568654020,0.05248429,131.36,131.34,0.05052932]
[1744568655328,0.05248429,131.36,131.35,7.6153]
[1744568656125,0.05248429,131.36,131.34,0.05052932]
[1744568657222,0.05248429,131.36,131.35,7.6153]
[1744568657628,0.05248429,131.36,131.34,0.05052932]
[1744568658631,0.05248429,131.36,131.34,7.66642932]
[1744568658927,0.05248429,131.36,131.34,0.05052932]
[1744568659431,0.05248429,131.36,131.35,7.6153]
[1744568659826,641.22,131.42,131.35,3.19845798]
[1744568660031,7.6119,131.41,131.38,7.6133]
[1744568660226,641.22,131.42,131.38,7.6133]
[1744568660632,648.8316,131.42,131.38,7.6133]
[1744568661031,0.0571149,131.41,131.39,0.05419353]
[1744568662132,0.0571149,131.41,131.4,7.6124]
[1744568662737,0.0571149,131.41,131.39,0.05419353]
[1744568663228,37.9971149,131.41,131.39,0.05419353]
[1744568663436,13.65058701,131.4,131.31,364.0]
[1744568663630,15.69628701,131.4,131.32,3.19949782]
[1744568663924,15.69628701,131.4,131.29,55.64728701]
[1744568664128,7.6142,131.37,131.33,7.6162]
[1744568664735,7.66728768,131.36,131.34,0.05165632]
[1744568666235,7.6153,131.35,131.34,0.05165632]
[1744568667133,13.70307469,131.36,131.28,1.9396]
[1744568667334,17.73748701,131.36,131.28,1.9396]
[1744568667533,17.73748701,131.36,131.3,7.6182]
[1744568667734,13.65058701,131.34,131.25,4.0767]
[1744568667935,37.94,131.33,131.27,3.2034588]
[1744568668132,13.65058701,131.32,131.25,4.0767]
[1744568668331,0.05527754,131.31,131.29,0.05211787]
[1744568668939,7.6182,131.3,131.29,0.05211787]
[1744568671245,21.26878701,131.3,131.29,0.05211787]
[1744568671445,7.67317754,131.31,131.29,0.05211787]
[1744568671737,13.65058701,131.3,131.22,368.0767]
[1744568671934,7.6207,131.26,131.22,7.6227]
[1744568672136,13.65058701,131.26,131.19,1.9769]
[1744568672341,13.65058701,131.24,131.18,2.1184]
[1744568672538,7.6229,131.22,131.18,9.7432]
[1744568672735,7.6229,131.22,131.18,7.6248]
[1744568672939,0.05841139,131.21,131.19,0.04835071]
[1744568673538,51.6489984,131.21,131.19,0.04835071]
[1744568673844,7.624,131.2,131.19,0.04835071]
[1744568675743,45.62221139,131.21,131.19,0.04835071]
[1744568675938,37.99841139,131.21,131.19,0.04835071]
[1744568676545,45.62221139,131.21,131.19,0.04835071]
[1744568677244,0.05841139,131.21,131.19,0.04835071]
[1744568677646,0.05841139,131.21,131.2,7.624]
[1744568678842,37.96,131.24,131.22,7.6223]
[1744568679042,7.6208,131.26,131.22,7.6223]
[1744568679345,7.6208,131.26,131.23,7.6221]
[1744568679551,37.96,131.27,131.18,59.82973967]
[1744568679741,37.96,131.27,131.19,3.9184]
[1744568679941,0.04878195,131.24,131.21,0.05623023]
[1744568680649,0.04878195,131.24,131.23,7.6223]
[1744568684149,641.38,131.3,131.26,7.62]
[1744568684348,641.38,131.3,131.22,2.0041]
[1744568685247,0.05556644,131.27,131.25,0.05333051]
[1744568685844,7.6206,131.26,131.25,0.05333051]
[1744568688450,7.67566644,131.27,131.25,0.05333051]
[1744568689948,7.6206,131.26,131.25,0.05333051]
[1744568690154,45.5406,131.26,131.25,0.05333051]
[1744568691350,7.623,131.22,131.19,11.5427]
[1744568691655,7.623,131.22,131.16,1.9965]
[1744568691953,7.623,131.22,131.18,7.6248]
[1744568692154,7.6236,131.21,131.18,7.6248]
[1744568692554,7.68146156,131.21,131.18,7.6781051]
[1744568694155,7.68146156,131.21,131.18,0.0533051]
[1744568694156,0.05786156,131.21,131.18,0.0533051]
[1744568694752,0.05786156,131.21,131.2,7.624]
[1744568695456,0.05786156,131.21,131.19,7.6243]
[1744568695951,0.05786156,131.21,131.18,7.6782051]
[1744568696459,0.05786156,131.21,131.18,0.0533051]
[1744568696647,0.05786156,131.21,131.2,7.624]
[1744568701857,0.05786156,131.21,131.19,7.6242]
[1744568702162,0.05786156,131.21,131.18,0.0533051]
[1744568702553,7.6243,131.2,131.18,0.0533051]
[1744568703460,7.6246,131.19,131.18,0.0533051]
[1744568704563,0.05786156,131.21,131.18,0.0533051]
[1744568705154,0.05786156,131.21,131.19,7.6242]
[1744568705661,0.05786156,131.21,131.2,7.624]
[1744568706863,37.94,131.26,131.23,7.6219]
[1744568707158,603.46,131.3,131.2,13.65703709]
[1744568707159,617.11703709,131.3,131.2,13.65703709]
[1744568707359,37.94,131.29,131.27,7.6196]
[1744568707559,2.1382,131.31,131.22,51.59703709]
[1744568707758,7.6203,131.27,131.22,37.94]
[1744568708061,0.04806539,131.26,131.23,0.05327279]
[1744568708253,7.6184,131.3,131.23,2.0766]
[1744568708655,37.94,131.32,131.23,2.0766]
[1744568708852,7.618,131.31,131.24,13.65703709]
[1744568709254,7.618,131.31,131.28,7.619]
[1744568709455,0.04888288,131.29,131.26,0.05029362]
[1744568710068,7.6194,131.28,131.26,0.05029362]
[1744568710463,0.04888288,131.29,131.26,0.05029362]
[1744568710664,7.6194,131.28,131.26,0.05029362]
[1744568712166,7.62,131.27,131.26,0.05029362]
[1744568716072,7.6227,131.23,131.2,7.624]
[1744568716271,3.937,131.27,131.19,2.0259]
[1744568716463,3.937,131.27,131.2,3.2169455]
[1744568716659,3.937,131.27,131.21,10.8400455]
[1744568716864,3.937,131.27,131.21,7.6231]
[1744568717171,0.05333849,131.25,131.23,0.05157794]
[1744568717367,7.622,131.24,131.23,0.05157794]
[1744568717568,45.522,131.24,131.23,0.05157794]
[1744568718071,37.9,131.24,131.16,5.9862]
[1744568718270,37.9,131.24,131.17,3.21806621]
[1744568718468,37.9,131.24,131.18,3.21806621]
[1744568718669,37.9,131.24,131.16,5.9862]
[1744568718875,37.9,131.24,131.17,3.21750214]
[1744568719171,7.6236,131.21,131.19,0.05653988]
[1744568720673,7.67725588,131.22,131.19,7.68103988]
[1744568720969,7.67725588,131.22,131.19,0.05653988]
[1744568720970,0.05395588,131.22,131.19,0.05653988]
[1744568722065,7.6235,131.21,131.19,0.05653988]
[1744568723175,7.67715588,131.22,131.19,7.68103988]
[1744568723473,7.67715588,131.22,131.19,0.05653988]
[1744568723773,7.67715588,131.22,131.19,7.68093988]
[1744568724474,7.6235,131.21,131.19,0.05653988]
[1744568725474,7.6235,131.21,131.19,7.68093988]
[1744568725678,7.6235,131.21,131.19,0.05653988]
[1744568726178,7.624,131.2,131.19,0.05653988]
[1744568726773,0.05395588,131.22,131.19,0.05653988]
[1744568727175,7.6238,131.21,131.19,0.05653988]
[1744568727376,0.05395588,131.22,131.19,0.05653988]
[1744568727876,7.624,131.2,131.19,0.05653988]
[1744568729277,7.6237,131.21,131.19,0.05653988]
[1744568729876,7.67705588,131.22,131.19,0.05653988]
[1744568730380,0.05395588,131.22,131.19,0.05653988]
[1744568730575,0.05395588,131.22,131.2,3.22071814]
[1744568730777,0.05395588,131.22,131.19,0.05653988]
[1744568730974,0.05395588,131.22,131.2,3.22056634]
[1744568731276,0.05395588,131.22,131.19,0.05653988]
[1744568731472,0.05395588,131.22,131.2,3.21982259]
[1744568731676,0.05395588,131.22,131.21,3.22008189]
[1744568731976,0.05395588,131.22,131.19,0.05653988]
[1744568732178,0.05395588,131.22,131.21,7.6235]
[1744568732379,603.56,131.28,131.21,3.22045459]
[1744568732579,37.92,131.29,131.22,3.22045459]
[1744568732778,7.6197,131.28,131.23,3.22045459]
[1744568732981,7.6197,131.28,131.2,6.1037]
[1744568733181,7.62,131.27,131.24,7.6212]
[1744568733483,0.05213944,131.27,131.24,0.05195197]
[1744568733785,7.6213,131.25,131.24,0.05195197]
[1744568737279,7.6207,131.26,131.24,0.05195197]
[1744568737477,0.05213944,131.27,131.24,0.05195197]
[1744568737985,7.67263944,131.27,131.24,7.67335197]
[1744568738483,0.05213944,131.27,131.24,0.05195197]
[1744568738680,7.6211,131.25,131.24,0.05195197]
[1744568742291,7.67233944,131.27,131.24,0.05195197]
[1744568742591,0.05213944,131.27,131.24,0.05195197]
[1744568742888,0.05213944,131.27,131.26,7.6206]
[1744568743892,37.88,131.31,131.29,7.6186]
[1744568744895,641.62,131.34,131.3,7.6182]
[1744568745094,0.05335685,131.31,131.3,7.6182]
[1744568754708,0.05335685,131.31,131.29,7.67489461]
[1744568754897,0.05335685,131.31,131.29,0.05609461]
[1744568755402,0.05335685,131.31,131.3,7.6182]
[1744568765914,37.86,131.36,131.35,7.6153]
[1744568766114,37.86,131.36,131.3,2.0968]
[1744568766416,45.475,131.36,131.3,2.0968]
[1744568767015,2.0347,131.38,131.34,7.6155]
[1744568767317,0.05862469,131.37,131.34,7.6155]
[1744568767515,0.05862469,131.37,131.35,0.05577962]
[1744568768614,7.67312469,131.37,131.35,0.05577962]
[1744568768813,0.05862469,131.37,131.35,0.05577962]
[1744568769313,7.6147,131.36,131.35,0.05577962]
[1744568769615,15.81712552,131.37,131.27,1.9578]
[1744568769815,2.0292,131.36,131.3,7.6179]
[1744568770015,37.86,131.35,131.3,7.6179]
[1744568770216,7.6168,131.33,131.3,7.6179]